bitfinex-derivatives/quotes_BTCF0:USTF0_20260119
["timestamp","ask_amount","ask_price","bid_price","bid_amount"]
[1768820447809,0.05361457,93103.0,93093.0,1.67697811]
[1768820449517,0.0886909,93103.0,93093.0,1.67697811]
[1768820450517,0.03507633,93103.0,93093.0,1.67697811]
[1768820452317,0.010747,93105.0,93093.0,1.67697811]
[1768820453519,0.010747,93108.0,93093.0,1.67697811]
[1768820453820,0.010747,93106.0,93093.0,1.67697811]
[1768820455118,0.010747,93104.0,93093.0,1.67697811]
[1768820455505,0.010747,93107.0,93093.0,1.67697811]
[1768820455819,0.010747,93105.0,93093.0,1.67697811]
[1768820456020,0.010747,93103.0,93093.0,1.67697811]
[1768820456315,0.010748,93101.0,93093.0,1.67697811]
[1768820460214,0.010747,93102.0,93093.0,1.67697811]
[1768820461523,0.010748,93100.0,93093.0,1.67697811]
[1768820463229,0.010748,93101.0,93093.0,1.67697811]
[1768820463417,0.03507633,93109.0,93093.0,1.67697811]
[1768820463926,0.010748,93101.0,93093.0,1.67697811]
[1768820464634,0.010748,93099.0,93093.0,1.67697811]
[1768820465830,0.010748,93095.0,93093.0,0.01798811]
[1768820466023,0.010748,93095.0,93093.0,1.1e-07]
[1768820466831,0.010747,93107.0,93093.0,1.1e-07]
[1768820468433,0.07142842,93108.0,93093.0,1.1e-07]
[1768820468627,0.010748,93101.0,93093.0,1.1e-07]
[1768820473937,0.010748,93099.0,93093.0,1.1e-07]
[1768820474933,0.010747,93103.0,93093.0,1.1e-07]
[1768820476745,0.08217542,93107.0,93093.0,1.1e-07]
[1768820476940,0.010747,93107.0,93093.0,1.1e-07]
[1768820478640,0.10650475,93109.0,93093.0,1.1e-07]
[1768820478825,0.010747,93104.0,93093.0,1.1e-07]
[1768820480235,0.010747,93102.0,93093.0,1.1e-07]
[1768820481649,0.010748,93100.0,93093.0,1.1e-07]
[1768820482841,0.09246982,93097.0,93093.0,1.1e-07]
[1768820483033,0.01075,93083.0,93071.0,0.09672]
[1768820483233,0.14709964,93085.0,93072.0,0.07442596]
[1768820483434,0.14709964,93085.0,93078.0,0.07442596]
[1768820483637,0.01075,93082.0,93071.0,0.09672]
[1768820484436,0.01075,93080.0,93071.0,0.09672]
[1768820485138,0.01075,93083.0,93071.0,0.09672]
[1768820485546,0.14415519,93081.0,93062.0,0.14888894]
[1768820485742,0.10321982,93079.0,93063.0,0.010752]
[1768820486335,0.01075,93076.0,93062.0,0.01112421]
[1768820486640,0.010751,93072.0,93058.0,1.42664]
[1768820487037,0.010751,93069.0,93058.0,0.10774435]
[1768820487553,0.010751,93069.0,93058.0,0.09672]
[1768820487745,0.010751,93069.0,93058.0,0.077863]
[1768820488751,0.010752,93067.0,93052.0,0.09654551]
[1768820489052,0.010752,93065.0,93051.0,0.14888894]
[1768820489243,7.554e-05,93064.0,93051.0,0.13018859]
[1768820489738,7.554e-05,93064.0,93051.0,0.09672]
[1768820490747,7.554e-05,93064.0,93051.0,0.19326551]
[1768820490949,7.554e-05,93064.0,93052.0,0.09654551]
[1768820491852,0.01082754,93064.0,93052.0,0.1073659]
[1768820492042,0.010752,93062.0,93052.0,0.1073659]
[1768820492441,0.010752,93062.0,93052.0,0.01082039]
[1768820492642,0.010752,93062.0,93051.0,0.09672]
[1768820493444,7.554e-05,93064.0,93051.0,0.10769132]
[1768820494539,0.01082754,93064.0,93051.0,0.10769132]
[1768820495856,0.010752,93062.0,93051.0,0.10769132]
[1768820497358,7.554e-05,93064.0,93051.0,0.10769132]
[1768820497853,7.554e-05,93064.0,93051.0,0.20423683]
[1768820498259,7.554e-05,93064.0,93053.0,0.05216894]
[1768820498445,0.01075,93079.0,93064.0,0.05216894]
[1768820498762,0.09676,93082.0,93069.0,0.09654551]
[1768820499269,0.09676,93082.0,93066.0,0.14855888]
[1768820499468,0.01075,93077.0,93066.0,0.14855888]
[1768820500058,0.09676,93082.0,93066.0,0.14855888]
[1768820500459,0.01075,93079.0,93067.0,0.09638994]
[1768820500659,0.01075,93079.0,93067.0,0.14880867]
[1768820500864,0.09676,93087.0,93070.0,0.09638994]
[1768820501860,0.01075,93078.0,93070.0,0.14415519]
[1768820502063,0.09676,93087.0,93070.0,0.14415519]
[1768820502268,0.01075,93082.0,93070.0,0.14415519]
[1768820503147,0.09676,93087.0,93070.0,0.24054513]
[1768820503352,0.010749,93086.0,93071.0,0.09638994]
[1768820503963,0.09676,93087.0,93071.0,0.09638994]
[1768820504452,0.010749,93086.0,93071.0,0.09638994]
[1768820506866,0.010749,93086.0,93072.0,0.10714094]
[1768820507067,0.010749,93086.0,93072.0,0.15955967]
[1768820507265,0.010749,93086.0,93073.0,0.09638994]
[1768820508364,0.01075,93084.0,93073.0,0.09638994]
[1768820508561,0.01075,93082.0,93070.0,0.14415519]
[1768820509065,0.01075,93083.0,93070.0,0.14415519]
[1768820509569,0.01075,93081.0,93070.0,0.14415519]
[1768820510564,0.01075,93084.0,93070.0,0.14415519]
[1768820511273,0.14527857,93084.0,93067.0,0.010751]
[1768820511476,0.01075,93080.0,93070.0,0.14415519]
[1768820512762,0.01075,93083.0,93070.0,0.14415519]
[1768820515168,0.02415006,93082.0,93070.0,0.14415519]
[1768820515365,0.01075,93083.0,93070.0,0.14415519]
[1768820515560,0.02415005,93082.0,93070.0,0.14415519]
[1768820515762,0.01075,93083.0,93070.0,0.14415519]
[1768820516063,0.02415005,93082.0,93070.0,0.14415519]
[1768820516263,0.09676,93087.0,93070.0,0.14415519]
[1768820516264,0.010749,93086.0,93071.0,0.010751]
[1768820516463,0.02415282,93085.0,93071.0,0.010751]
[1768820516671,0.02415282,93084.0,93071.0,0.010751]
[1768820516870,0.02415282,93083.0,93071.0,0.010751]
[1768820517070,0.02415282,93082.0,93071.0,0.010751]
[1768820517271,0.010749,93086.0,93071.0,0.010751]
[1768820517570,0.02415316,93085.0,93071.0,0.010751]
[1768820517776,0.02415316,93084.0,93071.0,0.010751]
[1768820517959,0.02415316,93083.0,93071.0,0.010751]
[1768820518160,0.02415316,93082.0,93070.0,0.23327819]
[1768820518361,0.01075,93084.0,93070.0,0.23327819]
[1768820518564,0.02415322,93083.0,93070.0,0.23327819]
[1768820518764,0.02415322,93082.0,93070.0,0.23327819]
[1768820518962,0.02415322,93082.0,93066.0,0.05428089]
[1768820518963,0.01075,93080.0,93067.0,0.010751]
[1768820519162,0.01075,93080.0,93066.0,0.14340389]
[1768820520177,0.01075,93078.0,93066.0,0.15415589]
[1768820521577,0.01075,93078.0,93066.0,0.14340389]
[1768820522275,0.01075,93076.0,93065.0,0.00016118]
[1768820522474,0.010751,93072.0,93065.0,0.00016118]
[1768820524679,0.010751,93070.0,93065.0,0.00016118]
[1768820524880,0.010751,93072.0,93065.0,0.00016118]
[1768820525273,0.010751,93067.0,93065.0,1.8e-07]
[1768820525472,0.010752,93065.0,93057.0,0.09676]
[1768820525780,0.010752,93065.0,93052.0,0.089123]
[1768820526179,0.06114321,93070.0,93053.0,0.010753]
[1768820526886,0.05039221,93070.0,93052.0,0.089123]
[1768820527085,0.010751,93069.0,93052.0,0.099876]
[1768820527885,0.05039221,93070.0,93054.0,0.099876]
[1768820528288,0.010751,93072.0,93054.0,0.099876]
[1768820529080,0.010751,93070.0,93054.0,0.099876]
[1768820529699,0.010751,93068.0,93054.0,0.089123]
[1768820532599,0.010751,93068.0,93049.0,0.05664525]
[1768820532600,0.14102183,93065.0,93049.0,0.00236436]
[1768820532801,0.010751,93074.0,93028.0,0.05428089]
[1768820532802,0.010752,93058.0,93042.0,0.10013439]
[1768820533102,0.010753,93056.0,93044.0,0.09148747]
[1768820533300,0.010753,93054.0,93044.0,0.09148747]
[1768820533698,0.09676,93059.0,93044.0,0.09148747]
[1768820535903,0.010753,93055.0,93044.0,0.09148747]
[1768820536501,0.14415519,93054.0,93044.0,0.00236447]
[1768820536701,0.00016118,93058.0,93044.0,0.00236447]
[1768820536906,0.010754,93048.0,93044.0,4.7e-07]
[1768820537310,0.00016118,93058.0,93044.0,4.7e-07]
[1768820537311,0.010754,93046.0,93044.0,4.7e-07]
[1768820537608,0.010754,93046.0,93040.0,0.089123]
[1768820540305,0.010754,93046.0,93035.0,0.089123]
[1768820540506,0.010754,93044.0,93035.0,0.089123]
[1768820540808,0.010754,93045.0,93035.0,0.089123]
[1768820542307,0.010754,93043.0,93035.0,0.089123]
[1768820542507,0.010754,93046.0,93035.0,0.089123]
[1768820542707,0.010753,93050.0,93037.0,0.12976698]
[1768820543206,0.010753,93050.0,93038.0,0.07988098]
[1768820543810,0.00016118,93058.0,93034.0,0.02163719]
[1768820543811,0.010753,93056.0,93042.0,0.12976698]
[1768820544011,0.010753,93057.0,93047.0,0.049886]
[1768820544205,0.04883471,93071.0,93049.0,0.07988098]
[1768820544414,0.1198753,93068.0,93052.0,0.12976698]
[1768820544603,0.0231153,93067.0,93053.0,0.07988098]
[1768820545002,0.010752,93060.0,93053.0,0.07988098]
[1768820545197,0.09676,93068.0,93053.0,0.07988098]
[1768820545409,0.02311543,93067.0,93053.0,0.07988098]
[1768820545608,0.010753,93058.0,93053.0,0.07988098]
[1768820545809,0.09676,93068.0,93045.0,0.12976698]
[1768820546008,0.02311489,93067.0,93048.0,0.07988098]
[1768820546204,0.09676,93068.0,93048.0,0.07988098]
[1768820546410,0.010753,93058.0,93048.0,0.07988098]
[1768820546611,0.09676,93068.0,93048.0,0.07988098]
[1768820546811,0.02311568,93067.0,93048.0,0.07988098]
[1768820547003,0.09676,93068.0,93048.0,0.07988098]
[1768820547205,0.02311616,93067.0,93048.0,0.07988098]
[1768820547510,0.09676,93068.0,93048.0,0.07988098]
[1768820547511,0.010753,93058.0,93048.0,0.07988098]
[1768820547812,0.09676,93068.0,93048.0,0.07988098]
[1768820548010,0.010753,93056.0,93048.0,0.07988098]
[1768820548211,0.00236396,93064.0,93041.0,0.049886]
[1768820548399,0.010753,93052.0,93040.0,0.00016118]
[1768820548601,0.010753,93050.0,93040.0,0.00016118]
[1768820549208,0.13475585,93061.0,93040.0,0.05004718]
[1768820549413,0.010753,93054.0,93040.0,0.05004718]
[1768820550301,0.010753,93052.0,93041.0,0.07988098]
[1768820551511,0.010753,93052.0,93042.0,0.07988098]
[1768820552010,0.010753,93056.0,93043.0,0.07988098]
[1768820552211,0.010753,93056.0,93043.0,0.12976698]
[1768820552413,0.010753,93054.0,93044.0,0.07988098]
[1768820553210,0.010753,93057.0,93044.0,0.07988098]
[1768820553607,0.010752,93061.0,93044.0,0.07988098]
[1768820553813,0.04883471,93062.0,93044.0,0.07988098]
[1768820554515,0.010753,93054.0,93044.0,0.07988098]
[1768820554717,0.010753,93052.0,93044.0,0.07988098]
[1768820555320,0.04883471,93062.0,93044.0,0.07988098]
[1768820555924,0.010753,93050.0,93044.0,0.07988098]
[1768820556108,0.04883471,93060.0,93040.0,0.00016118]
[1768820556418,0.010754,93048.0,93040.0,0.00016118]
[1768820557116,0.04883471,93056.0,93040.0,0.00016118]
[1768820558118,0.010753,93052.0,93040.0,0.00016118]
[1768820558312,0.04883471,93056.0,93040.0,0.00016118]
[1768820559420,0.010753,93050.0,93040.0,0.00016118]
[1768820559615,0.04883471,93056.0,93040.0,0.00016118]
[1768820560006,0.010753,93050.0,93040.0,0.00016118]
[1768820561407,0.010754,93048.0,93040.0,0.00016118]
[1768820562016,0.010753,93051.0,93040.0,0.00016118]
[1768820563913,0.010753,93054.0,93040.0,0.00016118]
[1768820566517,0.04883471,93056.0,93041.0,0.010754]
[1768820567212,0.010753,93051.0,93040.0,0.00016118]
[1768820568021,0.010754,93049.0,93040.0,0.00016118]
[1768820569921,0.010753,93050.0,93040.0,0.00016118]
[1768820570222,0.08171922,93053.0,93040.0,0.00016118]
[1768820570418,0.010753,93050.0,93040.0,0.00016118]
[1768820571217,0.04702329,93056.0,93040.0,0.00016118]
[1768820572521,0.010753,93053.0,93040.0,0.01091618]
[1768820572721,0.010753,93055.0,93040.0,0.01091618]
[1768820572921,0.010753,93055.0,93042.0,0.010754]
[1768820573120,0.05777629,93056.0,93042.0,0.010754]
[1768820574120,0.010752,93059.0,93042.0,0.09323005]
[1768820574422,0.06072551,93064.0,93048.0,0.010754]
[1768820574623,0.010752,93062.0,93048.0,0.010754]
[1768820574822,0.02263317,93061.0,93048.0,0.010754]
[1768820575022,0.02263317,93060.0,93048.0,0.010754]
[1768820575223,0.010752,93062.0,93048.0,0.010754]
[1768820575425,0.02263264,93061.0,93048.0,0.010754]
[1768820575623,0.02263264,93060.0,93048.0,0.010754]
[1768820575823,0.010752,93062.0,93048.0,0.010754]
[1768820576024,0.02263273,93061.0,93048.0,0.010754]
[1768820576214,0.02263273,93060.0,93048.0,0.010754]
[1768820576421,0.010752,93062.0,93048.0,0.010754]
[1768820576621,0.02263242,93061.0,93048.0,0.010754]
[1768820576820,0.02263242,93060.0,93048.0,0.010754]
[1768820577022,0.010752,93062.0,93048.0,0.010754]
[1768820577326,0.02263243,93061.0,93048.0,0.010754]
[1768820577526,0.02263243,93060.0,93048.0,0.010754]
[1768820577727,0.010752,93062.0,93048.0,0.010754]
[1768820577928,0.02263211,93061.0,93048.0,0.010754]
[1768820578122,0.02263211,93060.0,93048.0,0.010754]
[1768820578323,0.010752,93062.0,93048.0,0.010754]
[1768820578525,0.02263185,93061.0,93048.0,0.010754]
[1768820578726,0.02263185,93060.0,93048.0,0.010754]
[1768820578927,0.010752,93062.0,93048.0,0.010754]
[1768820579120,0.02263185,93061.0,93048.0,0.010754]
[1768820579320,0.02263185,93060.0,93048.0,0.010754]
[1768820579521,0.010752,93062.0,93048.0,0.010754]
[1768820579822,0.02237476,93061.0,93048.0,0.010754]
[1768820580029,0.010752,93062.0,93048.0,0.010754]
[1768820580221,0.02237475,93061.0,93048.0,0.010754]
[1768820580420,0.14673351,93064.0,93048.0,0.010754]
[1768820581522,0.010752,93063.0,93048.0,0.010754]
[1768820581929,0.010752,93063.0,93044.0,0.03259361]
[1768820582630,0.010752,93063.0,93048.0,0.010754]
[1768820583131,0.07959952,93054.0,93041.0,0.05789587]
[1768820583328,0.07959952,93054.0,93040.0,0.00016118]
[1768820584224,0.04760955,93055.0,93040.0,0.00016118]
[1768820584521,0.010753,93054.0,93041.0,0.010754]
[1768820585233,0.12720907,93052.0,93040.0,0.00016118]
[1768820585550,0.12720907,93049.0,93040.0,0.09692118]
[1768820585918,0.04760955,93049.0,93040.0,0.09692118]
[1768820591935,0.05836355,93049.0,93040.0,0.09692118]
[1768820592336,0.010754,93047.0,93040.0,0.09692118]
[1768820594534,0.010754,93043.0,93029.0,0.07720536]
[1768820594733,0.010754,93043.0,93020.0,0.12983961]
[1768820594734,0.010755,93038.0,93022.0,0.09676]
[1768820595330,0.010755,93038.0,93023.0,0.09323205]
[1768820596233,0.010755,93036.0,93023.0,0.08247605]
[1768820596440,0.010755,93036.0,93022.0,0.09676]
[1768820596735,0.010755,93038.0,93022.0,0.09676]
[1768820597235,0.010755,93038.0,93024.0,0.01338904]
[1768820597641,0.09035452,93038.0,93024.0,0.01338904]
[1768820599736,0.010755,93036.0,93024.0,0.01338904]
[1768820600643,0.09035452,93036.0,93024.0,0.01338904]
[1768820600835,0.010755,93034.0,93024.0,0.01338904]
[1768820603440,0.08064484,93027.0,93015.0,0.00010809]
[1768820603644,0.010757,93022.0,93015.0,0.00010809]
[1768820604045,0.09140184,93022.0,93011.0,0.01250438]
[1768820604244,0.09140184,93022.0,93009.0,0.09912538]
[1768820604637,0.08064484,93022.0,93009.0,0.09912538]
[1768820604835,0.010757,93021.0,93009.0,0.09912538]
[1768820605135,0.08064484,93019.0,93009.0,0.00236538]
[1768820605335,0.010758,93012.0,93009.0,3.8e-07]
[1768820605542,0.08064484,93011.0,92993.0,0.0509013]
[1768820605736,0.010758,93009.0,92993.0,0.0509013]
[1768820608147,0.08064484,93009.0,92990.0,0.14435907]
[1768820608844,0.010758,93007.0,92990.0,0.14435907]
[1768820609048,0.00016127,93009.0,92993.0,0.08235639]
[1768820610151,0.010758,93008.0,92993.0,0.08235639]
[1768820610346,0.010758,93008.0,92994.0,0.0509013]
[1768820610550,0.00016127,93009.0,92993.0,0.08235639]
[1768820610551,0.00016127,93009.0,92998.0,0.22671546]
[1768820610752,0.0968,93013.0,92999.0,0.08235639]
[1768820611048,0.08064484,93019.0,93000.0,0.14435907]
[1768820611243,0.010757,93019.0,93010.0,0.14435907]
[1768820611443,0.0968,93020.0,93007.0,0.08235639]
[1768820611850,0.0968,93020.0,93004.0,0.0509013]
[1768820612545,0.107557,93020.0,93004.0,0.0509013]
[1768820612750,0.107557,93020.0,93007.0,0.08235639]
[1768820612953,0.107556,93026.0,93012.0,0.08235639]
[1768820613144,0.010756,93026.0,93012.0,0.13325769]
[1768820613453,0.010756,93026.0,93013.0,0.08235639]
[1768820614557,0.010756,93024.0,93013.0,0.08235639]
[1768820616351,0.010756,93027.0,93013.0,0.13325769]
[1768820616558,0.0968,93033.0,93019.0,0.08235639]
[1768820617059,0.05004992,93039.0,93020.0,0.14435907]
[1768820617060,0.010756,93030.0,93020.0,0.14435907]
[1768820617248,0.0968,93035.0,93020.0,0.27761676]
[1768820617446,0.010755,93033.0,93021.0,0.08235639]
[1768820619558,0.010756,93031.0,93021.0,0.08235639]
[1768820620062,0.00236487,93029.0,93021.0,0.08235639]
[1768820620761,0.00236487,93029.0,93020.0,0.0509013]
[1768820621860,0.010756,93031.0,93020.0,0.13318783]
[1768820623157,0.010756,93029.0,93020.0,0.13318783]
[1768820624156,0.010756,93032.0,93020.0,0.13318783]
[1768820624465,0.0968,93036.0,93024.0,0.08228653]
[1768820624964,0.010755,93035.0,93024.0,0.08228653]
[1768820625155,0.0968,93036.0,93024.0,0.08228653]
[1768820625458,0.010756,93031.0,93020.0,0.08228653]
[1768820626854,0.010756,93032.0,93020.0,0.08228653]
[1768820629762,0.010756,93032.0,93021.0,0.05206054]
[1768820629966,0.010756,93032.0,93022.0,0.08228653]
[1768820630265,0.010755,93035.0,93022.0,0.08228653]
[1768820631287,0.010755,93035.0,93022.0,0.13434707]
[1768820632486,0.010755,93035.0,93023.0,0.08228653]
[1768820633189,0.010755,93033.0,93023.0,0.08228653]
[1768820633684,0.010755,93035.0,93023.0,0.08228653]
[1768820633877,0.010755,93032.0,93022.0,0.05206054]
[1768820636286,0.010755,93035.0,93022.0,0.05206054]
[1768820637086,0.14435907,93040.0,93022.0,0.14013623]
[1768820638479,0.010755,93035.0,93022.0,0.14013623]
[1768820639289,0.08028286,93039.0,93022.0,0.05206054]
[1768820639587,0.08028286,93039.0,93019.0,0.07731869]
[1768820639588,0.010756,93032.0,93019.0,0.07731869]
[1768820639788,0.010756,93032.0,93019.0,0.13084555]
[1768820640179,0.010756,93032.0,93019.0,0.14160255]
[1768820640681,0.010756,93032.0,93020.0,0.07731869]
[1768820641688,0.010756,93032.0,93020.0,0.13084555]
[1768820643690,0.010756,93032.0,93022.0,0.13084555]
[1768820644686,0.010755,93035.0,93022.0,0.13084555]
[1768820645691,0.010755,93035.0,93023.0,0.07731869]
[1768820646393,0.010755,93035.0,93023.0,0.13084555]
[1768820651797,0.010755,93035.0,93024.0,0.07731869]
[1768820651998,0.010755,93038.0,93024.0,0.13084555]
[1768820652199,0.02326772,93037.0,93025.0,0.14160155]
[1768820652401,0.010755,93038.0,93025.0,0.14160155]
[1768820652593,0.010755,93038.0,93026.0,0.07731869]
[1768820654101,0.010755,93038.0,93027.0,0.05352686]
[1768820654295,0.010755,93038.0,93027.0,0.13084555]
[1768820657104,0.010755,93036.0,93027.0,0.13084555]
[1768820657804,0.010755,93039.0,93027.0,0.13084555]
[1768820658203,0.010755,93037.0,93027.0,0.13084555]
[1768820662210,0.00236447,93044.0,93030.0,0.13084555]
[1768820662411,0.010755,93041.0,93031.0,0.13084555]
[1768820663412,0.0968,93042.0,93034.0,0.12477688]
[1768820663610,0.02236788,93042.0,93034.0,0.12477688]
[1768820663796,0.01311847,93044.0,93034.0,0.12477688]
[1768820664003,0.010754,93042.0,93034.0,0.12477688]
[1768820664203,0.010754,93042.0,93034.0,0.05430369]
[1768820664503,0.02305906,93041.0,93034.0,0.05430369]
[1768820664701,0.02305906,93040.0,93034.0,0.05430369]
[1768820664906,0.010754,93042.0,93034.0,0.05430369]
[1768820665301,0.00466116,93042.0,93034.0,0.05430369]
[1768820665502,0.00236447,93044.0,93034.0,0.05430369]
[1768820665711,0.00236447,93044.0,93030.0,0.07047319]
[1768820666413,0.010755,93041.0,93030.0,0.07047319]
[1768820668012,0.00236447,93044.0,93030.0,0.07047319]
[1768820670101,0.010754,93042.0,93030.0,0.12477688]
[1768820670298,0.010754,93043.0,93032.0,0.12477688]
[1768820675315,0.010754,93043.0,93033.0,0.07047319]
[1768820675816,0.010754,93043.0,93033.0,0.12477688]
[1768820676918,0.02241863,93042.0,93033.0,0.12477688]
[1768820677118,0.02241863,93041.0,93033.0,0.12477688]
[1768820677315,0.010754,93043.0,93033.0,0.12477688]
[1768820677517,0.02241843,93042.0,93033.0,0.12477688]
[1768820677716,0.02241843,93041.0,93033.0,0.12477688]
[1768820677918,0.010754,93043.0,93033.0,0.12477688]
[1768820678118,0.02241842,93042.0,93033.0,0.12477688]
[1768820678310,0.02241842,93041.0,93033.0,0.12477688]
[1768820678510,0.010754,93043.0,93033.0,0.12477688]
[1768820678810,0.02241828,93042.0,93033.0,0.12477688]
[1768820679010,0.02241828,93041.0,93033.0,0.12477688]
[1768820679213,0.00236447,93044.0,93033.0,0.12477688]
[1768820679418,0.02241826,93043.0,93033.0,0.12477688]
[1768820679619,0.02241826,93042.0,93033.0,0.12477688]
[1768820679819,0.02241826,93041.0,93033.0,0.12477688]
[1768820680020,0.00236447,93044.0,93033.0,0.12477688]
[1768820680222,0.02241818,93043.0,93033.0,0.12477688]
[1768820680419,0.02241818,93042.0,93033.0,0.12477688]
[1768820680720,0.02241818,93041.0,93033.0,0.12477688]
[1768820680921,0.00236447,93044.0,93033.0,0.12477688]
[1768820681125,0.02241814,93043.0,93033.0,0.12477688]
[1768820681421,0.02241814,93042.0,93033.0,0.12477688]
[1768820681621,0.02241814,93041.0,93033.0,0.12477688]
[1768820681822,0.00236447,93044.0,93033.0,0.12477688]
[1768820682018,0.02241814,93043.0,93033.0,0.12477688]
[1768820682217,0.02241814,93042.0,93033.0,0.12477688]
[1768820682426,0.02241814,93041.0,93033.0,0.12477688]
[1768820682628,0.01311847,93044.0,93033.0,0.12477688]
[1768820682828,0.02241816,93043.0,93033.0,0.12477688]
[1768820683029,0.02241816,93042.0,93033.0,0.12477688]
[1768820683328,0.02241816,93041.0,93033.0,0.12477688]
[1768820683533,0.01311847,93044.0,93033.0,0.12477688]
[1768820683734,0.02241819,93043.0,93033.0,0.12477688]
[1768820683932,0.02241819,93042.0,93033.0,0.12477688]
[1768820684119,0.02241819,93041.0,93033.0,0.12477688]
[1768820684318,0.01311847,93044.0,93033.0,0.12477688]
[1768820684526,0.02241829,93043.0,93033.0,0.12477688]
[1768820684823,0.02241829,93042.0,93033.0,0.12477688]
[1768820685017,0.02241829,93041.0,93033.0,0.12477688]
[1768820685221,0.01311847,93044.0,93033.0,0.12477688]
[1768820685430,0.0224184,93043.0,93033.0,0.12477688]
[1768820685621,0.0224184,93042.0,93033.0,0.12477688]
[1768820685822,0.0224184,93041.0,93033.0,0.12477688]
[1768820686024,0.01311847,93044.0,93033.0,0.12477688]
[1768820686325,0.02241857,93043.0,93033.0,0.12477688]
[1768820686524,0.02241857,93042.0,93033.0,0.12477688]
[1768820686845,0.02241857,93041.0,93033.0,0.12477688]
[1768820687023,0.01311847,93044.0,93033.0,0.12477688]
[1768820687323,0.0224188,93043.0,93033.0,0.12477688]
[1768820687622,0.0224188,93042.0,93033.0,0.12477688]
[1768820687823,0.0224188,93041.0,93033.0,0.12477688]
[1768820688121,0.01311847,93044.0,93033.0,0.12477688]
[1768820688322,0.02241881,93043.0,93033.0,0.12477688]
[1768820688523,0.02241881,93042.0,93033.0,0.12477688]
[1768820688724,0.02241881,93041.0,93033.0,0.12477688]
[1768820689031,0.00236447,93044.0,93033.0,0.12477688]
[1768820689230,0.02241915,93043.0,93033.0,0.12477688]
[1768820689428,0.02241915,93042.0,93033.0,0.12477688]
[1768820689629,0.02241915,93041.0,93033.0,0.12477688]
[1768820689829,0.00236447,93044.0,93033.0,0.12477688]
[1768820690027,0.02241919,93043.0,93033.0,0.12477688]
[1768820690227,0.02241919,93042.0,93033.0,0.12477688]
[1768820690428,0.02241919,93041.0,93033.0,0.12477688]
[1768820690631,0.00236447,93044.0,93033.0,0.12477688]
[1768820690832,0.02241959,93043.0,93033.0,0.12477688]
[1768820691034,0.02241959,93042.0,93033.0,0.12477688]
[1768820691333,0.02241959,93041.0,93033.0,0.12477688]
[1768820691534,0.02241959,93040.0,93033.0,0.12477688]
[1768820691736,0.00236447,93044.0,93033.0,0.12477688]
[1768820692035,0.02242005,93043.0,93033.0,0.12477688]
[1768820692234,0.02242005,93042.0,93033.0,0.12477688]
[1768820692430,0.02242005,93041.0,93033.0,0.12477688]
[1768820692624,0.02242005,93040.0,93033.0,0.12477688]
[1768820692824,0.00236447,93044.0,93033.0,0.12477688]
[1768820693025,0.02242062,93043.0,93033.0,0.12477688]
[1768820693330,0.02242062,93042.0,93033.0,0.13553188]
[1768820693532,0.02242062,93041.0,93033.0,0.13553188]
[1768820693726,0.00236447,93044.0,93033.0,0.13553188]
[1768820693930,0.02242159,93043.0,93033.0,0.13553188]
[1768820694132,0.02242159,93042.0,93033.0,0.13553188]
[1768820694344,0.02242159,93041.0,93033.0,0.13553188]
[1768820694637,0.00236447,93044.0,93033.0,0.13553188]
[1768820694934,0.02242154,93043.0,93033.0,0.13553188]
[1768820695120,0.02242154,93042.0,93033.0,0.13553188]
[1768820695322,0.02242154,93041.0,93033.0,0.13553188]
[1768820695519,0.00236447,93044.0,93033.0,0.13553188]
[1768820695727,0.02242154,93043.0,93033.0,0.13553188]
[1768820696022,0.02242154,93042.0,93033.0,0.13553188]
[1768820696223,0.02242154,93041.0,93033.0,0.13553188]
[1768820696434,0.00236447,93044.0,93033.0,0.13553188]
[1768820696734,0.0224216,93043.0,93033.0,0.13553188]
[1768820696925,0.0224216,93042.0,93033.0,0.13553188]
[1768820697127,0.0224216,93041.0,93033.0,0.13553188]
[1768820697328,0.00236447,93044.0,93033.0,0.13553188]
[1768820697529,0.02242167,93043.0,93033.0,0.13553188]
[1768820697734,0.02242167,93042.0,93033.0,0.13553188]
[1768820697934,0.02242167,93041.0,93033.0,0.13553188]
[1768820698134,0.010754,93043.0,93033.0,0.12477688]
[1768820698340,0.02242175,93042.0,93033.0,0.12477688]
[1768820698532,0.02242175,93041.0,93033.0,0.12477688]
[1768820698732,0.02242175,93040.0,93033.0,0.12477688]
[1768820698939,0.00236447,93044.0,93033.0,0.12477688]
[1768820699137,0.02242181,93043.0,93033.0,0.12477688]
[1768820699337,0.02242181,93042.0,93033.0,0.12477688]
[1768820699540,0.02242181,93041.0,93033.0,0.12477688]
[1768820699836,0.00236447,93044.0,93033.0,0.12477688]
[1768820700132,0.02233449,93043.0,93033.0,0.12477688]
[1768820700437,0.02233449,93042.0,93033.0,0.12477688]
[1768820700733,0.02233449,93041.0,93033.0,0.12477688]
[1768820700934,0.00236447,93044.0,93033.0,0.12477688]
[1768820701136,0.02233479,93043.0,93033.0,0.12477688]
[1768820701337,0.02233479,93042.0,93033.0,0.12477688]
[1768820701530,0.02233479,93041.0,93033.0,0.12477688]
[1768820701732,0.00236447,93044.0,93033.0,0.12477688]
[1768820701935,0.02233502,93043.0,93033.0,0.12477688]
[1768820702126,0.02233502,93042.0,93033.0,0.12477688]
[1768820702328,0.02233502,93041.0,93033.0,0.12477688]
[1768820702533,0.00236447,93044.0,93033.0,0.12477688]
[1768820702739,0.02233526,93043.0,93033.0,0.12477688]
[1768820702931,0.02233526,93042.0,93033.0,0.12477688]
[1768820703229,0.02233526,93041.0,93033.0,0.12477688]
[1768820703425,0.02233526,93040.0,93033.0,0.12477688]
[1768820703622,0.00236447,93044.0,93033.0,0.12477688]
[1768820703823,0.02233555,93043.0,93033.0,0.12477688]
[1768820704034,0.02233555,93042.0,93033.0,0.12477688]
[1768820704228,0.02233555,93041.0,93033.0,0.12477688]
[1768820704431,0.02233555,93040.0,93033.0,0.12477688]
[1768820704631,0.01311847,93044.0,93033.0,0.12477688]
[1768820704832,0.02233582,93043.0,93033.0,0.12477688]
[1768820705032,0.02233582,93042.0,93033.0,0.12477688]
[1768820705232,0.02233582,93041.0,93033.0,0.12477688]
[1768820705437,0.02233582,93040.0,93033.0,0.12477688]
[1768820705636,0.010754,93042.0,93033.0,0.12477688]
[1768820705840,0.02233646,93041.0,93033.0,0.12477688]
[1768820706038,0.02233646,93040.0,93033.0,0.12477688]
[1768820706238,0.010754,93042.0,93033.0,0.12477688]
[1768820706441,0.0223362,93041.0,93033.0,0.12477688]
[1768820706640,0.0223362,93040.0,93033.0,0.12477688]
[1768820706832,0.010754,93042.0,93033.0,0.12477688]
[1768820707033,0.010755,93040.0,93033.0,0.04101955]
[1768820707842,0.01311847,93044.0,93033.0,0.04101955]
[1768820708041,0.02233588,93043.0,93033.0,0.04101955]
[1768820708339,0.02233588,93042.0,93033.0,0.04101955]